bitfinex-derivatives/quotes_SOLF0:USTF0_20251020
["timestamp","ask_amount","ask_price","bid_price","bid_amount"]
[1760992600943,2.68,189.46,189.39,2.75]
[1760992601143,2.02515925,189.45,189.39,2.75]
[1760992601544,2.02515925,189.45,189.43,4.7502]
[1760992602444,4.70515925,189.45,189.41,4.7507]
[1760992602644,4.70515925,189.43,189.41,7.5007]
[1760992603751,43.72,189.44,189.42,7.5005]
[1760992603953,45.74515925,189.45,189.43,2.75]
[1760992606255,48.42515925,189.45,189.42,7.5005]
[1760992606458,2.02515925,189.43,189.38,2.75]
[1760992606657,2.02515925,189.41,189.38,2.75]
[1760992606852,4.70515925,189.41,189.38,2.75]
[1760992607955,4.70515925,189.41,189.38,7.5015]
[1760992609761,2.02515925,189.39,189.38,7.5015]
[1760992609957,2.68,189.44,189.39,4.7511]
[1760992610264,2.68,189.4,189.35,2.75]
[1760992610561,2.02515925,189.37,189.35,2.75]
[1760992611363,2.02515925,189.39,189.37,4.7516]
[1760992612464,4.70515925,189.39,189.37,4.7516]
[1760992612666,2.68,189.38,189.37,4.7516]
[1760992613762,2.02515925,189.39,189.37,4.7516]
[1760992614062,2.02515925,189.39,189.37,7.5016]
[1760992614564,4.70515925,189.39,189.37,4.7516]
[1760992617860,4.70515925,189.39,189.37,7.6316]
[1760992621073,4.70515925,189.39,189.37,4.7516]
[1760992621274,2.64,189.38,189.37,4.7516]
[1760992621974,4.66515925,189.39,189.37,7.6316]
[1760992622175,2.02515925,189.39,189.37,7.6316]
[1760992622672,4.66515925,189.39,189.37,7.6316]
[1760992623073,2.02515925,189.39,189.37,7.6316]
[1760992623465,2.02515925,189.39,189.38,2.88]
[1760992623973,4.66515925,189.39,189.37,7.6316]
[1760992624169,4.66515925,189.39,189.37,4.7516]
[1760992625072,2.64,189.38,189.37,4.7516]
[1760992627474,45.74515925,189.39,189.37,4.7516]
[1760992627678,45.74515925,189.39,189.37,7.6316]
[1760992628477,48.38515925,189.39,189.37,4.7516]
[1760992628672,48.38515925,189.39,189.37,7.6316]
[1760992629278,48.38515925,189.39,189.37,4.7516]
[1760992629668,48.38515925,189.39,189.35,7.6322]
[1760992629969,48.38515925,189.39,189.35,2.88]
[1760992630163,48.38515925,189.39,189.31,2.88]
[1760992630371,43.72,189.39,189.37,7.6317]
[1760992630569,45.74515925,189.39,189.37,7.6317]
[1760992631476,48.38515925,189.39,189.37,7.6317]
[1760992632872,48.38515925,189.39,189.35,4.7522]
[1760992633069,48.38515925,189.39,189.36,2.88]
[1760992633574,48.38515925,189.39,189.36,7.632]
[1760992634077,2.64,189.38,189.36,4.752]
[1760992634280,2.64,189.36,189.34,7.6325]
[1760992634573,2.02515925,189.35,189.29,2.88]
[1760992635075,2.02515925,189.33,189.29,2.88]
[1760992635273,2.72,189.32,189.29,2.88]
[1760992636679,2.72,189.32,189.29,7.6337]
[1760992636875,2.72,189.32,189.3,2.74]
[1760992637480,4.74515925,189.33,189.3,2.74]
[1760992638176,4.74515925,189.33,189.3,7.4935]
[1760992638370,2.02515925,189.33,189.31,2.74]
[1760992638881,4.74515925,189.33,189.26,2.74]
[1760992639175,2.02515925,189.31,189.26,2.74]
[1760992639574,2.72,189.3,189.26,2.74]
[1760992639769,2.02515925,189.29,189.26,2.74]
[1760992639972,2.72,189.28,189.26,2.74]
[1760992640176,2.02515925,189.27,189.25,4.7547]
[1760992640375,2.02515925,189.27,189.25,7.4947]
[1760992640778,4.74515925,189.27,189.23,4.7553]
[1760992641075,2.02515925,189.25,189.23,7.4953]
[1760992641668,2.02515925,189.25,189.21,4.7558]
[1760992641874,2.02515925,189.25,189.22,2.74]
[1760992642486,2.02515925,189.23,189.22,2.74]
[1760992642686,2.02515925,189.23,189.15,2.74]
[1760992643180,2.02515925,189.23,189.21,2.74]
[1760992643586,2.02515925,189.25,189.21,2.74]
[1760992644479,2.02515925,189.23,189.21,2.74]
[1760992644983,2.02515925,189.23,189.21,4.7556]
[1760992645183,2.02515925,189.23,189.22,2.74]
[1760992647483,2.02515925,189.25,189.22,2.74]
[1760992647983,2.02515925,189.25,189.23,2.66]
[1760992648577,2.72,189.28,189.24,2.66]
[1760992648879,2.81,189.27,189.24,2.66]
[1760992649084,2.02515925,189.26,189.24,2.66]
[1760992649985,2.02515925,189.26,189.24,7.4149]
[1760992651376,2.02515925,189.27,189.26,2.66]
[1760992652675,2.02515925,189.29,189.27,2.66]
[1760992652875,4.83515925,189.31,189.27,2.66]
[1760992653685,2.02515925,189.33,189.29,2.66]
[1760992653877,2.81,189.34,189.29,2.66]
[1760992654082,2.81,189.33,189.29,2.66]
[1760992654286,2.81,189.33,189.3,4.7535]
[1760992654589,2.81,189.33,189.3,7.4135]
[1760992655388,4.83515925,189.33,189.3,7.4135]
[1760992655989,4.83515925,189.33,189.25,2.02515925]
[1760992655990,2.02515925,189.33,189.28,4.754]
[1760992656189,37.252,189.37,189.28,7.414]
[1760992656190,4.83515925,189.31,189.28,7.414]
[1760992658598,2.81,189.3,189.28,4.754]
[1760992659496,2.81,189.3,189.28,7.414]
[1760992659893,2.81,189.32,189.29,7.4136]
[1760992660193,2.81,189.35,189.3,2.66]
[1760992661102,2.81,189.35,189.29,4.7536]
[1760992665910,2.81,189.35,189.29,7.4136]
[1760992666614,2.81,189.35,189.31,2.66]
[1760992667512,2.81,189.35,189.3,4.7535]
[1760992667704,2.81,189.35,189.3,7.4135]
[1760992667902,2.81,189.35,189.31,2.66]
[1760992671511,7.92373907,189.36,189.22,3.17153907]
[1760992671512,2.81,189.36,189.32,2.66]
[1760992671909,51.3017,189.38,189.33,2.66]
[1760992672210,2.81,189.37,189.33,2.66]
[1760992673119,2.81,189.37,189.34,2.66]
[1760992674218,43.74,189.38,189.34,2.66]
[1760992674424,43.74,189.38,189.35,2.66]
[1760992674713,3.17153907,189.39,189.35,2.66]
[1760992674910,2.81,189.38,189.35,2.66]
[1760992677816,2.81,189.38,189.34,4.7524]
[1760992678308,2.81,189.38,189.34,7.6224]
[1760992681912,2.81,189.38,189.34,4.7524]
[1760992682117,2.81,189.38,189.35,2.87]
[1760992685815,3.17153907,189.39,189.36,2.87]
[1760992686318,5.88153907,189.39,189.36,2.87]
[1760992686519,2.71,189.38,189.36,2.87]
[1760992686719,3.17153907,189.39,189.36,2.87]
[1760992687116,43.72,189.4,189.37,2.87]
[1760992687418,46.89153907,189.42,189.37,2.87]
[1760992687617,49.60153907,189.42,189.37,2.87]
[1760992687808,5.88153907,189.42,189.37,2.87]
[1760992688012,5.88153907,189.42,189.39,4.7512]
[1760992688315,43.46,189.43,189.4,2.87]
[1760992688518,2.71,189.44,189.4,2.87]
[1760992690020,2.71,189.44,189.42,2.87]
[1760992696822,3.17153907,189.45,189.42,7.6205]
[1760992697032,3.17153907,189.45,189.43,2.83]
[1760992697033,6.05153907,189.45,189.43,2.83]
[1760992697327,3.17153907,189.45,189.34,2.83]
[1760992699030,3.17153907,189.45,189.42,2.83]
[1760992699320,46.58,189.46,189.42,2.83]
[1760992699518,46.58,189.46,189.43,2.83]
[1760992701025,43.7,189.46,189.43,2.83]
[1760992701230,2.88,189.45,189.41,2.83]
[1760992703031,2.88,189.45,189.42,2.83]
[1760992704135,2.88,189.45,189.39,7.5812]
[1760992704136,2.88,189.44,189.39,7.5812]
[1760992705544,2.88,189.44,189.4,4.751]
[1760992705933,2.88,189.44,189.4,7.581]
[1760992706131,3.17153907,189.45,189.42,2.83]
[1760992706328,43.7,189.46,189.42,2.83]
[1760992706636,2.88,189.45,189.42,2.83]
[1760992707937,43.7,189.46,189.36,9.5042]
[1760992708136,43.7,189.46,189.44,2.65]
[1760992708634,43.7,189.46,189.44,7.3998]
[1760992708840,43.7,189.46,189.45,2.65]
[1760992709140,2.86,189.49,189.45,2.65]
[1760992709333,43.7,189.5,189.46,2.65]
[1760992711041,43.7,189.5,189.49,2.65]
[1760992711644,2.86,189.55,189.51,2.65]
[1760992711939,2.86,189.54,189.51,2.65]
[1760992712828,2.86,189.54,189.5,4.7486]
[1760992713030,2.86,189.54,189.5,7.3986]
[1760992713633,2.86,189.54,189.5,4.7486]
[1760992713840,2.86,189.54,189.51,2.65]
[1760992719651,2.86,189.54,189.5,4.7486]
[1760992719846,2.86,189.54,189.51,4.7482]
[1760992720152,43.68,189.55,189.52,2.65]
[1760992720842,2.02458649,189.54,189.52,2.65]
[1760992721043,45.70458649,189.55,189.53,7.3977]
[1760992721648,43.68,189.55,189.54,2.65]
[1760992722144,46.54,189.55,189.52,2.65]
[1760992722350,2.02458649,189.54,189.52,2.65]
[1760992722653,4.88458649,189.54,189.52,2.65]
[1760992722850,4.88458649,189.54,189.51,4.7483]
[1760992723150,2.02458649,189.52,189.51,4.7483]
[1760992723853,2.02458649,189.52,189.51,7.3983]
[1760992728560,48.56458649,189.55,189.53,4.7478]
[1760992728757,48.56458649,189.55,189.53,7.3978]
[1760992728958,45.70458649,189.55,189.53,7.3978]
[1760992729668,45.70458649,189.55,189.54,2.65]
[1760992731670,2.02458649,189.55,189.54,2.65]
[1760992734570,2.02458649,189.57,189.55,4.7473]
[1760992734773,4.88458649,189.57,189.55,4.7473]
[1760992734971,2.86,189.56,189.51,2.65]
[1760992735165,4.88458649,189.55,189.51,2.65]
[1760992735366,4.88458649,189.55,189.53,4.7477]
[1760992735568,4.88458649,189.55,189.53,7.3977]
[1760992735764,2.02458649,189.55,189.53,7.3977]
[1760992737071,2.02458649,189.55,189.46,11.52338649]
[1760992737072,4.88458649,189.56,189.55,4.7473]
[1760992737774,2.02458649,189.56,189.55,7.4073]
[1760992738569,2.02458649,189.56,189.55,4.7473]
[1760992740371,45.68458649,189.58,189.57,2.66]
[1760992741268,45.68458649,189.58,189.56,7.4069]
[1760992741678,45.68458649,189.58,189.56,4.7469]
[1760992741876,45.68458649,189.58,189.56,7.4069]
[1760992743979,48.38458649,189.58,189.56,7.4069]
[1760992744778,45.68458649,189.58,189.56,7.4069]
[1760992745675,48.38458649,189.58,189.56,7.4069]
[1760992746882,48.38458649,189.58,189.55,2.66]
[1760992746883,4.72458649,189.58,189.55,2.66]
[1760992747077,2.02458649,189.56,189.55,2.66]
[1760992755284,2.02458649,189.56,189.54,4.7474]
[1760992755503,2.71,189.55,189.47,2.88]
[1760992755791,2.02458649,189.49,189.47,2.88]
[1760992756179,2.02458649,189.49,189.48,7.6291]
[1760992756489,2.02458649,189.51,189.43,2.02458649]
[1760992756689,2.02458649,189.51,189.44,2.88]
[1760992757978,2.02458649,189.51,189.5,4.7484]
[1760992758183,2.02458649,189.51,189.5,7.6284]
[1760992761989,2.02458649,189.53,189.51,4.7481]
[1760992762193,2.02458649,189.53,189.52,2.88]
[1760992762391,6.94566214,189.57,189.52,2.88]
[1760992762688,2.02458649,189.57,189.52,2.88]
[1760992762894,4.73458649,189.57,189.52,2.88]
[1760992763698,2.02458649,189.57,189.52,2.88]
[1760992763992,2.02458649,189.57,189.55,7.6272]
[1760992765697,2.71,189.56,189.55,4.7472]
[1760992765997,2.02458649,189.57,189.55,4.7472]
[1760992766396,2.02458649,189.57,189.55,7.6272]
[1760992766995,4.73458649,189.57,189.55,7.6272]
[1760992767496,2.02458649,189.57,189.55,7.6272]
[1760992769902,2.02458649,189.57,189.56,2.82]
[1760992770601,2.71,189.56,189.53,4.7477]
[1760992770801,2.02458649,189.56,189.53,2.82]
[1760992771003,2.02458649,189.58,189.53,2.82]
[1760992771502,2.02458649,189.58,189.56,2.82]
[1760992771703,4.73458649,189.58,189.56,2.82]
[1760992772000,2.02458649,189.58,189.56,7.5669]
[1760992774902,2.02458649,189.59,189.56,7.5669]
[1760992775208,4.73458649,189.59,189.56,7.5669]
[1760992778120,2.71,189.58,189.56,7.5669]
[1760992778518,2.71,189.56,189.47,2.82]
[1760992778720,6.5614342,189.62,189.47,2.82]
[1760992778721,4.73458649,189.55,189.47,2.82]
[1760992780120,4.73458649,189.55,189.52,4.748]
[1760992780418,2.71,189.54,189.52,4.748]
[1760992781125,4.73458649,189.53,189.52,4.748]
[1760992781423,2.02458649,189.53,189.52,7.568]
[1760992781618,2.02458649,189.53,189.52,4.748]
[1760992781619,4.73458649,189.53,189.52,4.748]
[1760992781830,2.71,189.52,189.5,4.7485]
[1760992782016,2.02458649,189.51,189.5,4.7485]
[1760992782522,2.02458649,189.51,189.5,7.5685]
[1760992782822,2.71,189.52,189.5,7.5685]
[1760992783218,3.16440292,189.53,189.52,7.5681]
[1760992783417,2.71,189.55,189.52,2.82]
[1760992783618,4.41464822,189.55,189.52,2.82]
[1760992785022,4.41464822,189.55,189.54,2.82]
[1760992787928,3.16440292,189.56,189.54,7.5675]
[1760992788122,7.57905114,189.56,189.54,7.5675]
[1760992788321,3.16440292,189.56,189.54,7.5675]
[1760992788527,7.57905114,189.56,189.54,7.5675]
[1760992788721,3.16440292,189.56,189.54,7.5675]
[1760992788922,7.57905114,189.56,189.54,7.5675]
[1760992789130,3.16440292,189.56,189.54,7.5675]
[1760992789328,7.57905114,189.56,189.54,7.5675]
[1760992789527,3.16440292,189.56,189.54,7.5675]
[1760992789727,7.57905114,189.56,189.54,7.5675]
[1760992789929,3.16440292,189.56,189.54,7.5675]
[1760992790118,7.57905114,189.56,189.54,7.5675]
[1760992790326,5.87440292,189.56,189.54,7.5675]
[1760992790632,7.12464822,189.56,189.54,7.5675]
[1760992790929,2.71,189.56,189.54,7.5675]
[1760992791129,7.12464822,189.56,189.54,7.5675]
[1760992791330,2.71,189.56,189.54,7.5675]
[1760992791532,7.12464822,189.56,189.54,7.5675]
[1760992791833,4.41464822,189.57,189.55,7.5672]
[1760992792135,4.41464822,189.56,189.55,7.5672]
[1760992792325,7.12464822,189.58,189.55,7.5672]
[1760992792630,4.41464822,189.57,189.55,7.5672]
[1760992792830,4.41464822,189.56,189.55,7.5672]
[1760992793129,4.41464822,189.57,189.55,7.5672]
[1760992793332,4.41464822,189.56,189.55,7.5672]
[1760992793522,4.41464822,189.57,189.55,7.5672]
[1760992793722,4.41464822,189.56,189.55,7.5672]
[1760992794022,7.12464822,189.57,189.55,7.5672]
[1760992794221,4.41464822,189.56,189.55,7.5672]
[1760992794928,4.41464822,189.56,189.55,4.7472]
[1760992795222,4.41464822,189.56,189.55,7.5672]
[1760992798037,7.29464822,189.56,189.55,4.7472]
[1760992798231,2.88,189.56,189.55,4.7472]
[1760992798727,7.29464822,189.56,189.55,4.7472]
[1760992798929,2.88,189.56,189.55,4.7472]
[1760992799330,4.41464822,189.56,189.55,4.7472]
[1760992799533,2.88,189.57,189.55,4.7472]
[1760992799729,4.41464822,189.56,189.55,7.6772]
[1760992800633,4.41464822,189.56,189.55,4.7472]
[1760992800839,7.29464822,189.56,189.53,7.6776]
[1760992801029,2.88,189.56,189.53,7.6776]
[1760992801537,7.29464822,189.56,189.54,4.7474]
[1760992801735,2.88,189.56,189.54,4.7474]
[1760992802130,7.29464822,189.56,189.54,4.7474]
[1760992802337,2.88,189.56,189.54,4.7474]
[1760992802739,7.29464822,189.56,189.54,4.7474]
[1760992805337,2.88,189.5,189.48,7.679]
[1760992805737,2.88,189.51,189.48,7.679]
[1760992807941,7.29720495,189.51,189.48,7.679]
[1760992808140,2.88,189.51,189.48,7.679]
[1760992809840,2.88,189.51,189.48,4.749]
[1760992810233,2.88,189.51,189.48,7.679]
[1760992811644,2.88,189.51,189.43,4.89845979]
[1760992811645,2.88,189.52,189.5,2.93]
[1760992811847,4.41720495,189.53,189.5,2.93]
[1760992812343,2.88,189.53,189.5,2.93]
[1760992812540,7.29720495,189.53,189.5,2.93]
[1760992812739,2.88,189.53,189.5,2.93]
[1760992812940,7.29720495,189.53,189.5,7.6784]
[1760992813137,2.88,189.53,189.51,2.93]
[1760992813333,7.29720495,189.53,189.51,2.93]
[1760992813535,4.41720495,189.54,189.52,2.93]
[1760992813729,7.31305432,189.56,189.52,2.93]
[1760992814133,4.43305432,189.57,189.52,2.93]
[1760992814543,4.43305432,189.57,189.47,4.89845979]
[1760992814544,4.43305432,189.58,189.49,2.93]
[1760992814844,4.43305432,189.58,189.5,2.93]
[1760992815934,4.43305432,189.58,189.55,4.7472]
[1760992816138,4.43305432,189.58,189.56,2.9]
[1760992818049,2.79,189.58,189.56,2.9]
[1760992818547,4.43305432,189.58,189.56,2.9]
[1760992818747,7.22305432,189.6,189.56,2.9]
[1760992818947,4.43305432,189.59,189.56,2.9]
[1760992819255,4.43305432,189.58,189.56,2.9]
[1760992819444,2.79,189.59,189.56,7.6469]
[1760992819744,7.22305432,189.58,189.56,7.6469]
[1760992819946,2.79,189.58,189.56,7.6469]
[1760992820341,7.22305432,189.58,189.56,7.6469]
[1760992820641,2.79,189.58,189.56,7.6469]
[1760992821149,7.22305432,189.58,189.56,7.6469]
[1760992821350,2.79,189.58,189.56,7.6469]
[1760992821849,7.22305432,189.58,189.56,7.6469]
[1760992822043,2.79,189.58,189.56,7.6469]
[1760992822548,4.43305432,189.58,189.56,7.6469]
[1760992822748,2.79,189.59,189.56,7.6469]
[1760992822940,4.43305432,189.58,189.56,7.6469]
[1760992823137,2.79,189.59,189.56,7.6469]
[1760992823345,4.43305432,189.58,189.56,7.6469]
[1760992824251,2.79,189.59,189.56,7.6469]
[1760992824450,7.22305432,189.59,189.56,7.6469]
[1760992824642,2.79,189.59,189.56,7.6469]
[1760992824950,7.22305432,189.59,189.56,7.6469]
[1760992825151,2.79,189.59,189.56,7.6469]
[1760992825346,7.22305432,189.59,189.56,7.6469]
[1760992825551,2.79,189.59,189.56,7.6469]
[1760992825750,7.22305432,189.59,189.56,7.6469]
[1760992825948,2.79,189.59,189.56,7.6469]
[1760992826247,7.22305432,189.59,189.56,7.6469]
[1760992826447,2.79,189.59,189.56,7.6469]
[1760992826651,7.22305432,189.59,189.56,7.6469]
[1760992826949,2.79,189.59,189.56,7.6469]
[1760992827251,7.22305432,189.59,189.56,7.6469]
[1760992827550,2.79,189.59,189.56,7.6469]
[1760992827851,7.22305432,189.59,189.56,7.6469]
[1760992828150,2.79,189.59,189.56,7.6469]
[1760992828355,7.22305432,189.59,189.57,2.66]
[1760992828644,2.92,189.59,189.56,7.4069]
[1760992828849,7.35305432,189.59,189.56,7.4069]
[1760992829043,2.92,189.58,189.56,7.4069]
[1760992831146,2.92,189.59,189.57,2.66]
[1760992831444,7.35305432,189.59,189.57,7.4067]
[1760992831644,2.92,189.59,189.57,7.4067]
[1760992831844,7.35305432,189.59,189.57,7.4067]
[1760992832142,2.92,189.59,189.57,4.7467]
[1760992832446,7.35305432,189.59,189.57,4.7467]
[1760992832648,2.92,189.59,189.57,4.7467]
[1760992832852,2.92,189.59,189.57,7.4067]
[1760992833153,7.35305432,189.59,189.57,7.4067]
[1760992833449,2.92,189.59,189.57,7.4067]
[1760992833858,7.35305432,189.59,189.57,7.4067]
[1760992834056,2.92,189.59,189.57,7.4067]
[1760992834555,7.35305432,189.59,189.57,7.4067]
[1760992834752,2.92,189.59,189.57,7.4067]
[1760992835257,7.35305432,189.59,189.57,4.7467]
[1760992835459,2.92,189.59,189.57,4.7467]
[1760992835958,7.35305432,189.58,189.57,4.7467]
[1760992836257,2.92,189.58,189.57,4.7467]
[1760992836554,2.92,189.58,189.54,4.7473]
[1760992836744,2.92,189.56,189.52,2.66]
[1760992836951,2.92,189.54,189.52,2.66]
[1760992837145,2.92,189.54,189.48,2.66]
[1760992838860,2.92,189.53,189.49,7.4087]
[1760992839358,2.92,189.53,189.5,2.66]
[1760992844246,2.92,189.53,189.42,9.68597075]
[1760992844247,2.92,189.55,189.52,2.66]
[1760992844750,4.94454529,189.55,189.52,2.66]
[1760992845557,2.92,189.55,189.52,2.66]
[1760992847050,4.42450926,189.56,189.53,2.66]
[1760992847251,4.94454529,189.57,189.53,2.66]
[1760992848658,7.3442769,189.57,189.53,2.66]
[1760992848868,2.92,189.57,189.53,2.66]
[1760992849165,2.92,189.57,189.54,7.4073]
[1760992850057,4.94454529,189.57,189.54,4.7473]
[1760992850262,4.94454529,189.57,189.51,2.66]
[1760992850263,2.92,189.56,189.52,4.748]
[1760992850464,2.92,189.55,189.52,4.748]
[1760992850865,2.92,189.55,189.52,7.408]
[1760992854977,2.92,189.54,189.5,4.7484]
[1760992855267,2.92,189.53,189.5,7.4084]
[1760992859375,2.92,189.53,189.51,2.77]
[1760992860572,2.92,189.53,189.5,7.5184]
[1760992861170,4.4242769,189.54,189.44,4.89845979]
[1760992861171,7.3142769,189.54,189.51,7.5182]
[1760992861377,2.89,189.54,189.52,2.77]
[1760992861869,7.3142769,189.54,189.52,2.77]
[1760992862069,2.89,189.54,189.52,2.77]
[1760992862570,7.3142769,189.54,189.52,2.77]
[1760992862770,2.89,189.54,189.52,2.77]
[1760992863175,7.3142769,189.54,189.52,2.77]
[1760992863365,2.89,189.54,189.52,2.77]
[1760992863868,7.3142769,189.54,189.52,2.77]
[1760992864069,2.89,189.54,189.52,2.77]
[1760992864274,4.4242769,189.55,189.53,2.77]
[1760992864467,2.89,189.55,189.53,2.77]
[1760992864773,7.3142769,189.55,189.53,2.77]
[1760992865075,2.89,189.55,189.53,2.77]
[1760992865270,7.3142769,189.55,189.53,2.77]
[1760992865575,2.89,189.55,189.53,7.5177]
[1760992866168,2.89,189.56,189.53,7.5177]
[1760992866367,4.42772269,189.58,189.55,2.77]
[1760992866572,4.42772269,189.57,189.55,2.77]
[1760992866776,7.31772269,189.59,189.55,2.77]
[1760992866975,4.42772269,189.58,189.55,2.77]
[1760992867175,4.42772269,189.57,189.55,2.77]
[1760992867378,4.42772269,189.58,189.55,2.77]
[1760992867575,4.42772269,189.58,189.57,2.77]
[1760992867773,4.42772269,189.59,189.57,2.77]
[1760992867978,7.31772269,189.6,189.57,2.77]
[1760992868178,7.31772269,189.59,189.57,2.77]
[1760992868477,2.89,189.59,189.57,2.77]
[1760992868680,7.31772269,189.59,189.57,2.77]
[1760992868876,2.89,189.59,189.57,2.77]
[1760992869078,7.31772269,189.59,189.57,7.5167]
[1760992869379,7.31772269,189.6,189.57,7.5167]
[1760992869577,4.42772269,189.59,189.57,7.5167]
[1760992870182,4.42772269,189.58,189.57,7.5167]
[1760992870381,4.42772269,189.59,189.57,7.5167]
[1760992871186,4.42772269,189.58,189.55,4.7472]
[1760992871374,2.89,189.57,189.55,4.7472]
[1760992871574,4.42772269,189.58,189.55,7.5172]
[1760992871773,7.31772269,189.59,189.56,2.77]
[1760992871980,4.42772269,189.58,189.56,2.77]
[1760992872581,2.269e-05,189.59,189.57,2.77]
[1760992872781,4.93164589,189.64,189.57,2.77]
[1760992872984,7.82164589,189.64,189.59,2.77]
[1760992873190,2.89,189.63,189.6,4.7459]
[1760992874085,2.89,189.63,189.6,7.5159]
[1760992876979,2.89,189.63,189.59,2.92]
[1760992877584,2.89,189.63,189.6,2.92]
[1760992880490,2.89,189.63,189.6,7.6659]
[1760992883486,2.89,189.63,189.58,7.6665]
[1760992883684,2.89,189.63,189.59,2.92]
[1760992884690,2.89,189.63,189.59,4.7462]
[1760992884887,2.89,189.63,189.6,2.92]
[1760992886394,2.89,189.63,189.57,7.6667]
[1760992886790,7.6354,189.63,189.57,2.92]
[1760992887187,2.83,189.61,189.56,4.7469]
[1760992887389,2.66,189.6,189.54,2.92]
[1760992887588,2.66,189.59,189.54,2.92]
[1760992887887,4.93164589,189.62,189.47,4.89845979]
[1760992887888,2.66,189.57,189.51,2.69]
[1760992888094,2.66,189.55,189.48,4.71454529]
[1760992888293,2.66,189.55,189.49,2.69]
[1760992888597,2.66,189.53,189.49,2.69]
[1760992889189,2.66,189.53,189.5,2.69]
[1760992891694,2.66,189.53,189.49,4.7487]
[1760992892094,2.66,189.53,189.49,7.4387]
[1760992892500,2.66,189.53,189.49,2.69]
[1760992893696,2.66,189.53,189.5,2.69]
[1760992902502,2.66,189.57,189.51,2.69]
[1760992902904,2.02454529,189.56,189.48,2.69]
[1760992903103,2.02454529,189.56,189.48,4.71454529]
[1760992903104,2.66,189.55,189.48,4.71454529]
[1760992903403,2.66,189.55,189.49,2.69]
[1760992904911,2.66,189.55,189.49,7.4387]
[1760992905209,2.66,189.58,189.51,2.69]
[1760992907005,2.66,189.58,189.52,7.4379]
[1760992909320,2.66,189.58,189.53,2.69]
[1760992909612,2.66,189.61,189.54,2.69]
[1760992910713,2.66,189.61,189.58,2.69]
[1760992911005,2.66,189.62,189.58,2.69]
[1760992911616,2.66,189.62,189.58,7.4364]
[1760992911916,2.66,189.62,189.59,2.69]
[1760992919326,12.40590952,189.65,189.59,2.69]
[1760992919526,9.66590952,189.65,189.59,2.69]
[1760992919726,2.74,189.64,189.59,2.69]
[1760992920319,2.74,189.66,189.6,2.92]
[1760992921121,2.74,189.66,189.61,2.92]
[1760992926030,2.74,189.66,189.62,2.92]
[1760992926628,3.65801203,189.68,189.63,2.92]
[1760992926825,2.74,189.67,189.59,2.92]
[1760992927028,2.74,189.66,189.59,2.92]
[1760992927328,2.74,189.64,189.59,2.92]
[1760992927519,2.74,189.64,189.56,2.92]
[1760992929034,2.74,189.63,189.57,7.6667]
[1760992930326,2.74,189.63,189.59,2.92]
[1760992934122,7.4847,189.66,189.6,2.92]
[1760992934822,2.74,189.65,189.62,2.92]
[1760992935429,13.32322155,189.68,189.62,2.92]
[1760992935625,10.58322155,189.68,189.62,2.92]
[1760992935830,2.74,189.67,189.62,2.92]
[1760992936025,2.74,189.67,189.62,7.6654]
[1760992936230,2.74,189.67,189.63,2.89]
[1760992945141,0.91801203,189.68,189.63,2.89]
[1760992945340,7.66100952,189.69,189.64,2.89]
[1760992945645,2.74,189.68,189.64,2.89]